[Event "European Womens-ch 2025"]
[Site "Rhodes"]
[Date "2025.04.07"]
[Round "7.30"]
[White "Atalik, Ekaterina"]
[Black "Yildiz, Elif Zeren"]
[Result "1/2-1/2"]
[Annotator "RC"]
[ECO "E49"]
[WhiteElo "2375"]
[BlackElo "2160"]
[PlyCount "125"]
[EventDate "2025.03.29"]
[EventType "swiss"]
[EventCountry "GRE"]
[SourceTitle "playchess.com"]
[Source "ChessBase"]
[SourceQuality "1"]
[TimeControl "40/5400+30:1800+30"]

1. d4 {[%emt 0:00:02]} Nf6 {[%emt 0:00:07]} 2. c4 {[%emt 0:00:04]} e6 {[%emt 0:00:05]} 3. Nc3 {[%emt 0:00:09]} Bb4 {[%emt 0:00:22]} 4. e3 {[%emt 0:00:12]} O-O {[%emt 0:00:50]} 5. Bd3 {[%emt 0:00:18]} c5 {[%emt 0:03:21]} 6. Nge2 {[%emt 0:01:15]} d5 {[%emt 0:00:09]} 7. a3 {[%emt 0:02:20]} Bxc3+ {[%emt 0:00:08]} 8. bxc3 {[%emt 0:00:06]} dxc4 {[%emt 0:00:05]} 9. Bxc4 {[%emt 0:00:08]} Qc7 {[%emt 0:00:16]} 10. Qd3 {[%emt 0:00:23]} Nc6 {[%emt 0:09:41]} 11. e4 {[%emt 0:01:09]} e5 {[%emt 0:07:31]} 12. d5 {[%emt 0:02:39]} Na5 {[%emt 0:01:11]} 13. Ba2 {[%emt 0:02:36]} c4 {[%emt 0:02:18]} 14. Qc2 {[%emt 0:00:55]} Nd7 {[%emt 0:05:05]} 15. O-O {[%emt 0:02:02]} Nc5 {[%emt 0:05:24]} 16. Ng3 {[%emt 0:00:59]} Nd3 {[%emt 0:05:01]} 17. Be3 {[%emt 0:03:59]} Bd7 {[%emt 0:07:27]} 18. Qd2 {[%emt 0:06:50]} b5 {[%emt 0:05:44]} 19. Rad1 {[%emt 0:12:54]} Qd6 {[%emt 0:05:59]} 20. Bb1 {[%emt 0:05:41]} Nb3 {[%emt 0:01:55]} 21. Qa2 {[%emt 0:03:28]} Nbc5 {[%emt 0:00:26]} 22. Bc2 {[%emt 0:08:48]} a6 {[%emt 0:04:26]} 23. Ra1 {[%emt 0:03:12]} Rac8 {[%emt 0:03:02]} 24. Rab1 {[%emt 0:06:22]} g6 {[%emt 0:04:10]} 25. Bh6 {[%emt 0:03:28]} Rfe8 {[%emt 0:00:16]} 26. Bxd3 {[%emt 0:01:15]} Nxd3 {[%emt 0:00:47]} 27. Qd2 {[%emt 0:00:23]} Nf4 {[%emt 0:11:20]} 28. Rfe1 {[%emt 0:09:41]} Nd3 {[%emt 0:00:12]} 29. Rf1 {[%emt 0:01:41]} Nf4 {[%emt 0:00:22]} 30. f3 {[%emt 0:01:54]} f5 {[%emt 0:05:29]} 31. exf5 {[%emt 0:04:25]} Bxf5 {[%emt 0:00:02]} 32. Ne4 {[%emt 0:03:20]} Qb6+ {[%emt 0:02:30]} 33. Kh1 {[%emt 0:00:32]} Rcd8 {[%emt 0:03:20]} 34. Bxf4 {[%emt 0:01:34]} exf4 {[%emt 0:00:01]} 35. Rfe1 {[%emt 0:02:43]} Re5 {[%emt 0:00:57]} 36. Qxf4 {[%emt 0:01:17]} Rexd5 {[%emt 0:00:19]} 37. h4 {[%emt 0:01:13]} Bxe4 {[%emt 0:01:43]} 38. Rxe4 {[%emt 0:01:39]} Rf5 {[%emt 0:02:08]} 39. Qg3 {[%emt 0:01:29]} Qd6 {[%emt 0:01:11]} 40. Qxd6 {[%emt 0:00:00]} Rxd6 {[%emt 0:00:00]} 41. Rbe1 {[%emt 0:02:28]} Rd3 {[%emt 0:01:48]} 42. Re6 {[%emt 0:02:15]} Rxc3 {[%emt 0:03:43]} 43. Rxa6 {[%emt 0:02:14]} Rb3 {[%emt 0:04:28]} 44. Re7 {[%emt 0:08:24]} Rf7 {[%emt 0:00:59]} 45. Re8+ {[%emt 0:02:30]} Kg7 {[%emt 0:03:59]} 46. Rc8 {[%emt 0:00:28]} Rf4 {[%emt 0:03:12]} 47. Kh2 {[%emt 0:01:54]} Rxh4+ {[%emt 0:03:53]} 48. Kg3 {[%emt 0:00:04]} Rd4 {[%emt 0:01:30]} 49. Rc7+ {[%emt 0:01:08]} Kh6 {[%emt 0:00:27]} 50. Raa7 {[%emt 0:00:52]} Kg5 {[%emt 0:01:31]} 51. Rxh7 {[%emt 0:02:13]} c3 {[%emt 0:07:07]} 52. Rhc7 {[%emt 0:00:52]} Rc4 {[%emt 0:00:22]} 53. Rxc4 {[%emt 0:01:06]} bxc4 {[%emt 0:00:01]} 54. Ra4 {[%emt 0:00:23]} Kf5 {[%emt 0:00:19]} 55. Rxc4 {[%emt 0:00:10]} Rxa3 {[%emt 0:00:02]} 56. Rc5+ {[%emt 0:00:47]} Ke6 {[%emt 0:00:39]} 57. Kf4 {[%emt 0:01:36]} Ra2 {[%emt 0:01:30]} 58. g4 {[%emt 0:04:24]} c2 {[%emt 0:00:05]} 59. Ke4 {[%emt 0:02:39]} Ra4+ {[%emt 0:01:12]} 60. Kd3 {[%emt 0:01:00]} Ra3+ {[%emt 0:00:14]} 61. Ke4 {[%emt 0:01:24]} Ra4+ {[%emt 0:00:09]} 62. Ke3 {[%emt 0:00:22]} Ra2 {[%emt 0:00:56]} 63. Ke4 {[%emt 0:03:17]} 1/2-1/2

[Event "European Womens-ch 2025"]
[Site "Rhodes"]
[Date "2025.04.07"]
[Round "7.31"]
[White "Zaksaite, Salomeja"]
[Black "Sliwicka, Alicja"]
[Result "1/2-1/2"]
[Annotator "RC"]
[ECO "E60"]
[WhiteElo "2137"]
[BlackElo "2342"]
[PlyCount "111"]
[EventDate "2025.03.29"]
[EventType "swiss"]
[EventCountry "GRE"]
[SourceTitle "playchess.com"]
[Source "ChessBase"]
[SourceQuality "1"]
[TimeControl "40/5400+30:1800+30"]

1. d4 {[%emt 0:00:08]} Nf6 {[%emt 0:00:06]} 2. Nf3 {[%emt 0:00:11]} g6 {[%emt 0:00:16]} 3. e3 {[%emt 0:00:32]} Bg7 {[%emt 0:00:09]} 4. Be2 {[%emt 0:00:03]} O-O {[%emt 0:00:21]} 5. O-O {[%emt 0:00:23]} d6 {[%emt 0:00:16]} 6. b3 {[%emt 0:00:19]} e5 {[%emt 0:04:27]} 7. dxe5 {[%emt 0:00:17]} Ng4 {[%emt 0:02:19]} 8. Bb2 {[%emt 0:02:15]} Nc6 {[%emt 0:07:06]} 9. c4 {[%emt 0:00:25]} Ngxe5 {[%emt 0:02:57]} 10. Qd2 {[%emt 0:07:05]} Bf5 {[%emt 0:05:52]} 11. Nc3 {[%emt 0:03:17]} h5 {[%emt 0:07:11]} 12. Nxe5 {[%emt 0:18:48]} dxe5 {[%emt 0:02:37]} 13. Qxd8 {[%emt 0:07:22]} Rfxd8 {[%emt 0:01:39]} 14. Nd5 {[%emt 0:00:04]} Rd7 {[%emt 0:01:16]} 15. Rfd1 {[%emt 0:00:17]} Rad8 {[%emt 0:05:53]} 16. Kf1 {[%emt 0:19:28]} Be4 {[%emt 0:03:03]} 17. Nc3 {[%emt 0:02:16]} Bf5 {[%emt 0:03:37]} 18. Rxd7 {[%emt 0:00:43]} Rxd7 {[%emt 0:00:07]} 19. Rd1 {[%emt 0:00:13]} Rxd1+ {[%emt 0:01:22]} 20. Bxd1 {[%emt 0:00:20]} e4 {[%emt 0:02:59]} 21. Na4 {[%emt 0:01:29]} Bxb2 {[%emt 0:07:14]} 22. Nxb2 {[%emt 0:00:05]} Be6 {[%emt 0:01:18]} 23. Na4 {[%emt 0:08:49]} f5 {[%emt 0:00:32]} 24. Nc3 {[%emt 0:09:57]} a6 {[%emt 0:03:59]} 25. f3 {[%emt 0:00:11]} exf3 {[%emt 0:01:15]} 26. Bxf3 {[%emt 0:00:04]} Nd8 {[%emt 0:02:17]} 27. Ke2 {[%emt 0:03:22]} h4 {[%emt 0:04:15]} 28. Kd3 {[%emt 0:01:47]} Kf7 {[%emt 0:02:05]} 29. Kd4 {[%emt 0:00:08]} Kf6 {[%emt 0:06:05]} 30. e4 {[%emt 0:00:40]} Nc6+ {[%emt 0:01:34]} 31. Ke3 {[%emt 0:00:30]} Ne7 {[%emt 0:01:14]} 32. exf5 {[%emt 0:01:37]} Nxf5+ {[%emt 0:00:05]} 33. Kd3 {[%emt 0:00:18]} c6 {[%emt 0:03:05]} 34. Ne4+ {[%emt 0:02:30]} Ke5 {[%emt 0:00:23]} 35. Ng5 {[%emt 0:02:20]} Bd7 {[%emt 0:02:23]} 36. c5 {[%emt 0:00:53]} Be8 {[%emt 0:03:16]} 37. Bg4 {[%emt 0:04:32]} Ne7 {[%emt 0:07:00]} 38. h3 {[%emt 0:02:27]} Nd5 {[%emt 0:00:30]} 39. Nf3+ {[%emt 0:01:44]} Kf4 {[%emt 0:02:51]} 40. Nxh4 {[%emt 0:00:00]} Nb4+ {[%emt 0:00:00]} 41. Kd4 {[%emt 0:15:35]} Nxa2 {[%emt 0:02:45]} 42. Bc8 {[%emt 0:00:05]} Nb4 {[%emt 0:04:23]} 43. Bxb7 {[%emt 0:00:49]} Kg3 {[%emt 0:03:39]} 44. Nf3 {[%emt 0:00:07]} Kxg2 {[%emt 0:00:14]} 45. Ng5 {[%emt 0:00:05]} Bd7 {[%emt 0:07:58]} 46. Ke5 {[%emt 0:01:08]} Bf5 {[%emt 0:03:17]} 47. Kd6 {[%emt 0:04:25]} Bc2 {[%emt 0:00:13]} 48. Bxc6+ {[%emt 0:00:18]} Nxc6 {[%emt 0:00:14]} 49. Kxc6 {[%emt 0:00:02]} Bxb3 {[%emt 0:00:12]} 50. Kb6 {[%emt 0:00:04]} Bd5 {[%emt 0:00:30]} 51. c6 {[%emt 0:00:31]} Bxc6 {[%emt 0:00:10]} 52. Kxc6 {[%emt 0:00:03]} Kg3 {[%emt 0:00:06]} 53. Kb6 {[%emt 0:00:15]} Kh4 {[%emt 0:00:08]} 54. Nh7 {[%emt 0:00:29]} Kxh3 {[%emt 0:00:05]} 55. Kxa6 {[%emt 0:00:02]} g5 {[%emt 0:00:28]} 56. Nxg5+ {[%emt 0:00:05]} 1/2-1/2

[Event "European Womens-ch 2025"]
[Site "Rhodes"]
[Date "2025.04.07"]
[Round "7.32"]
[White "Cornileau, Juliette"]
[Black "Brunello, Marina"]
[Result "1/2-1/2"]
[Annotator "RC"]
[ECO "A42"]
[WhiteElo "2130"]
[BlackElo "2330"]
[PlyCount "85"]
[EventDate "2025.03.29"]
[EventType "swiss"]
[EventCountry "GRE"]
[SourceTitle "playchess.com"]
[Source "ChessBase"]
[SourceQuality "1"]
[TimeControl "40/5400+30:1800+30"]

1. e4 {[%emt 0:00:16]} d6 {[%emt 0:00:59]} 2. d4 {[%emt 0:00:46]} g6 {[%emt 0:00:11]} 3. c4 {[%emt 0:00:50]} Bg7 {[%emt 0:00:21]} 4. Nc3 {[%emt 0:00:14]} Nd7 {[%emt 0:01:06]} 5. Be2 {[%emt 0:05:07]} e5 {[%emt 0:00:50]} 6. Nf3 {[%emt 0:04:20]} exd4 {[%emt 0:03:06]} 7. Nxd4 {[%emt 0:00:06]} Ngf6 {[%emt 0:00:06]} 8. O-O {[%emt 0:01:40]} O-O {[%emt 0:00:08]} 9. f3 {[%emt 0:09:28]} c6 {[%emt 0:08:18]} 10. Be3 {[%emt 0:08:13]} h6 {[%emt 0:13:52]} 11. Qd2 {[%emt 0:02:13]} Kh7 {[%emt 0:00:05]} 12. Rad1 {[%emt 0:01:43]} Re8 {[%emt 0:01:12]} 13. Nc2 {[%emt 0:06:58]} Re6 {[%emt 0:01:05]} 14. Nd4 {[%emt 0:08:32]} Re8 {[%emt 0:00:05]} 15. Nc2 {[%emt 0:00:06]} Bf8 {[%emt 0:00:12]} 16. b4 {[%emt 0:07:47]} Qc7 {[%emt 0:04:31]} 17. h3 {[%emt 0:11:38]} Nh5 {[%emt 0:04:06]} 18. f4 {[%emt 0:07:35]} Ng3 {[%emt 0:00:17]} 19. Rf3 {[%emt 0:01:11]} Nxe4 {[%emt 0:02:00]} 20. Nxe4 {[%emt 0:00:04]} Rxe4 {[%emt 0:00:06]} 21. f5 {[%emt 0:00:04]} g5 {[%emt 0:15:14]} 22. Bd3 {[%emt 0:00:50]} Rh4 {[%emt 0:00:49]} 23. f6+ {[%emt 0:03:41]} Kh8 {[%emt 0:00:07]} 24. Bxg5 {[%emt 0:04:08]} hxg5 {[%emt 0:00:40]} 25. Qxg5 {[%emt 0:00:10]} Rh6 {[%emt 0:00:06]} 26. Rg3 {[%emt 0:01:02]} Nxf6 {[%emt 0:00:07]} 27. Rf1 {[%emt 0:00:08]} Ng4 {[%emt 0:00:56]} 28. hxg4 {[%emt 0:02:06]} d5 {[%emt 0:06:22]} 29. Rf6 {[%emt 0:06:12]} Rxf6 {[%emt 0:00:12]} 30. Qxf6+ {[%emt 0:00:09]} Bg7 {[%emt 0:00:08]} 31. Rh3+ {[%emt 0:02:26]} Kg8 {[%emt 0:00:05]} 32. Qg5 {[%emt 0:01:04]} Be6 {[%emt 0:01:20]} 33. Nd4 {[%emt 0:04:07]} Re8 {[%emt 0:02:54]} 34. Nxe6 {[%emt 0:02:03]} Rxe6 {[%emt 0:00:18]} 35. Rf3 {[%emt 0:00:30]} Re5 {[%emt 0:05:36]} 36. Qh4 {[%emt 0:00:20]} Qe7 {[%emt 0:08:41]} 37. Qxe7 {[%emt 0:00:28]} Rxe7 {[%emt 0:00:05]} 38. cxd5 {[%emt 0:00:21]} cxd5 {[%emt 0:00:04]} 39. Rf5 {[%emt 0:00:26]} d4 {[%emt 0:00:48]} 40. Rd5 {[%emt 0:00:00]} Be5 {[%emt 0:00:00]} 41. g3 {[%emt 0:12:00]} Kg7 {[%emt 0:11:40]} 42. Kg2 {[%emt 0:03:47]} Bxg3 {[%emt 0:00:30]} 43. Rxd4 {[%emt 0:00:30]} 1/2-1/2

[Event "European Womens-ch 2025"]
[Site "Rhodes"]
[Date "2025.04.07"]
[Round "7.33"]
[White "Koridze, Lile"]
[Black "Zawadzka, Jolanta"]
[Result "0-1"]
[Annotator "RC"]
[ECO "D34"]
[WhiteElo "2115"]
[BlackElo "2326"]
[PlyCount "112"]
[EventDate "2025.03.29"]
[EventType "swiss"]
[EventCountry "GRE"]
[SourceTitle "playchess.com"]
[Source "ChessBase"]
[SourceQuality "1"]
[TimeControl "40/5400+30:1800+30"]

1. d4 {[%emt 0:00:02]} d5 {[%emt 0:00:08]} 2. c4 {[%emt 0:00:03]} e6 {[%emt 0:00:09]} 3. Nf3 {[%emt 0:00:04]} c5 {[%emt 0:00:14]} 4. cxd5 {[%emt 0:06:23]} exd5 {[%emt 0:00:07]} 5. g3 {[%emt 0:03:37]} Nc6 {[%emt 0:00:53]} 6. Bg2 {[%emt 0:05:52]} c4 {[%emt 0:00:26]} 7. O-O {[%emt 0:04:08]} Nf6 {[%emt 0:00:20]} 8. Nc3 {[%emt 0:04:13]} Be7 {[%emt 0:00:19]} 9. Ne5 {[%emt 0:04:24]} O-O {[%emt 0:01:43]} 10. Bg5 {[%emt 0:12:37]} Be6 {[%emt 0:00:25]} 11. Qd2 {[%emt 0:16:27]} h6 {[%emt 0:02:15]} 12. Be3 {[%emt 0:02:15]} Bb4 {[%emt 0:08:11]} 13. Rad1 {[%emt 0:05:19]} Ne7 {[%emt 0:05:49]} 14. Qc2 {[%emt 0:03:31]} a6 {[%emt 0:11:58]} 15. Bf4 {[%emt 0:02:25]} Bf5 {[%emt 0:22:08]} 16. Qc1 {[%emt 0:03:09]} b5 {[%emt 0:00:30]} 17. a3 {[%emt 0:01:58]} Ba5 {[%emt 0:03:16]} 18. Na2 {[%emt 0:04:33]} Ne8 {[%emt 0:05:06]} 19. e4 {[%emt 0:06:45]} dxe4 {[%emt 0:06:13]} 20. d5 {[%emt 0:00:27]} Nf6 {[%emt 0:05:52]} 21. d6 {[%emt 0:09:07]} Ng6 {[%emt 0:00:26]} 22. Nc6 {[%emt 0:02:43]} Qb6 {[%emt 0:00:07]} 23. Nxa5 Qxa5 {[%emt 0:00:05]} 24. Nb4 {[%emt 0:00:34]} Bg4 {[%emt 0:10:13]} 25. Rd4 {[%emt 0:01:32]} Qb6 {[%emt 0:00:22]} 26. Be3 {[%emt 0:00:13]} Qb7 {[%emt 0:00:17]} 27. Qd2 {[%emt 0:00:27]} Rad8 {[%emt 0:01:23]} 28. Nd5 {[%emt 0:00:46]} Nxd5 {[%emt 0:01:31]} 29. Bxe4 {[%emt 0:00:33]} Rxd6 30. Rxd5 {[%emt 0:00:40]} Rxd5 {[%emt 0:04:43]} 31. Bxd5 {[%emt 0:00:02]} Qd7 {[%emt 0:00:31]} 32. f3 {[%emt 0:01:06]} Be6 {[%emt 0:00:49]} 33. Be4 {[%emt 0:00:25]} Qxd2 {[%emt 0:03:22]} 34. Bxd2 {[%emt 0:00:03]} f5 {[%emt 0:00:04]} 35. Bb7 {[%emt 0:00:42]} Rb8 {[%emt 0:00:21]} 36. Re1 {[%emt 0:00:10]} Kf7 {[%emt 0:00:28]} 37. Bxa6 {[%emt 0:00:49]} Rb6 {[%emt 0:00:27]} 38. Rxe6 {[%emt 0:00:12]} Kxe6 {[%emt 0:03:00]} 39. Bc8+ {[%emt 0:00:06]} Kf7 {[%emt 0:00:12]} 40. Bxf5 {[%emt 0:00:00]} Ne5 {[%emt 0:00:00]} 41. Be4 Rd6 {[%emt 0:36:37]} 42. Bc3 {[%emt 0:33:08]} Nd3 {[%emt 0:00:00]} 43. Kf1 {[%emt 0:00:00]} g5 {[%emt 0:00:00]} 44. Ke2 {[%emt 0:00:00]} Nc5 {[%emt 0:00:00]} 45. h3 {[%emt 0:00:00]} Nxe4 {[%emt 0:00:00]} 46. fxe4 {[%emt 0:00:00]} Rd3 {[%emt 0:00:00]} 47. Kf2 {[%emt 0:00:00]} h5 {[%emt 0:00:00]} 48. e5 {[%emt 0:00:00]} Ke6 {[%emt 0:00:00]} 49. Kg2 {[%emt 0:00:00]} g4 {[%emt 0:00:00]} 50. hxg4 {[%emt 0:00:00]} hxg4 {[%emt 0:00:00]} 51. Kf2 {[%emt 0:00:00]} Kd5 {[%emt 0:00:00]} 52. Kg2 {[%emt 0:00:00]} Re3 {[%emt 0:00:00]} 53. Kf2 {[%emt 0:01:05]} Ke4 {[%emt 0:00:00]} 54. Kg2 {[%emt 0:00:34]} Re2+ {[%emt 0:00:00]} 55. Kg1 {[%emt 0:00:14]} Kf3 {[%emt 0:00:00]} 56. Kf1 {[%emt 0:00:04]} Re4 {[%emt 0:00:00]} 0-1

[Event "European Womens-ch 2025"]
[Site "Rhodes"]
[Date "2025.04.07"]
[Round "7.34"]
[White "Antolak, Julia"]
[Black "Eric, Jovana"]
[Result "1/2-1/2"]
[Annotator "RC"]
[ECO "C03"]
[WhiteElo "2314"]
[BlackElo "2147"]
[PlyCount "118"]
[EventDate "2025.03.29"]
[EventType "swiss"]
[EventCountry "GRE"]
[SourceTitle "playchess.com"]
[Source "ChessBase"]
[SourceQuality "1"]
[TimeControl "40/5400+30:1800+30"]

1. e4 {[%emt 0:00:04]} e6 {[%emt 0:00:08]} 2. d4 {[%emt 0:00:06]} d5 {[%emt 0:00:05]} 3. Nd2 {[%emt 0:00:05]} h6 {[%emt 0:00:14]} 4. Bd3 {[%emt 0:03:08]} c5 {[%emt 0:02:35]} 5. dxc5 {[%emt 0:01:18]} Bxc5 {[%emt 0:00:40]} 6. Ngf3 {[%emt 0:03:56]} Nf6 {[%emt 0:01:07]} 7. Qe2 {[%emt 0:00:56]} Nc6 {[%emt 0:04:08]} 8. a3 {[%emt 0:02:19]} O-O {[%emt 0:03:33]} 9. O-O {[%emt 0:01:25]} Bb6 {[%emt 0:06:20]} 10. e5 {[%emt 0:06:08]} Nd7 {[%emt 0:00:15]} 11. c4 {[%emt 0:00:20]} Bc7 {[%emt 0:09:42]} 12. b4 {[%emt 0:11:39]} Ncxe5 {[%emt 0:04:13]} 13. Bc2 {[%emt 0:03:00]} Qf6 {[%emt 0:07:05]} 14. Bb2 {[%emt 0:00:33]} Qf4 {[%emt 0:05:45]} 15. cxd5 {[%emt 0:13:09]} exd5 {[%emt 0:01:35]} 16. Nxe5 {[%emt 0:00:17]} Nxe5 {[%emt 0:02:31]} 17. Bxe5 {[%emt 0:05:50]} Qxe5 {[%emt 0:02:26]} 18. Qxe5 {[%emt 0:01:09]} Bxe5 {[%emt 0:00:05]} 19. Rad1 {[%emt 0:00:06]} Be6 {[%emt 0:01:33]} 20. Nf3 {[%emt 0:02:16]} Bb2 {[%emt 0:01:42]} 21. a4 {[%emt 0:01:41]} Rfd8 {[%emt 0:01:44]} 22. Bb3 {[%emt 0:01:31]} Rac8 {[%emt 0:05:17]} 23. Rd3 {[%emt 0:01:16]} Rc3 {[%emt 0:03:04]} 24. Rfd1 {[%emt 0:01:00]} Rxd3 {[%emt 0:01:25]} 25. Rxd3 {[%emt 0:00:12]} Rc8 {[%emt 0:00:32]} 26. Kf1 {[%emt 0:00:35]} Rc3 {[%emt 0:05:59]} 27. Ke2 {[%emt 0:00:55]} Kf8 {[%emt 0:09:52]} 28. Nd4 {[%emt 0:03:13]} Ke7 {[%emt 0:03:03]} 29. Nxe6 {[%emt 0:02:09]} fxe6 {[%emt 0:00:16]} 30. Rxc3 {[%emt 0:00:09]} Bxc3 {[%emt 0:00:04]} 31. b5 {[%emt 0:00:07]} g5 {[%emt 0:02:17]} 32. g4 {[%emt 0:02:26]} Kd6 {[%emt 0:00:58]} 33. Kd3 {[%emt 0:00:39]} Bf6 {[%emt 0:02:17]} 34. Bd1 {[%emt 0:01:47]} Ke5 {[%emt 0:01:00]} 35. h3 {[%emt 0:01:27]} Kf4 {[%emt 0:01:53]} 36. Be2 {[%emt 0:01:54]} Bd8 {[%emt 0:03:24]} 37. Bd1 {[%emt 0:03:30]} Bb6 {[%emt 0:00:14]} 38. Ke2 {[%emt 0:01:55]} Bc5 {[%emt 0:01:40]} 39. Bc2 {[%emt 0:00:34]} b6 {[%emt 0:02:29]} 40. Bg6 {[%emt 0:00:00]} e5 {[%emt 0:00:00]} 41. f3 {[%emt 0:06:27]} e4 {[%emt 0:06:00]} 42. fxe4 {[%emt 0:00:12]} dxe4 {[%emt 0:00:05]} 43. Bh7 {[%emt 0:04:44]} e3 {[%emt 0:01:01]} 44. Bc2 {[%emt 0:00:45]} Kg3 {[%emt 0:00:31]} 45. Bd1 {[%emt 0:00:07]} Kxh3 {[%emt 0:01:16]} 46. Kd3 {[%emt 0:00:24]} Kg3 {[%emt 0:02:30]} 47. Be2 {[%emt 0:01:12]} Kf2 {[%emt 0:04:59]} 48. Bd1 {[%emt 0:00:26]} Bd6 {[%emt 0:00:10]} 49. Be2 {[%emt 0:00:52]} Bf4 {[%emt 0:00:09]} 50. Bd1 {[%emt 0:00:09]} Kg3 {[%emt 0:01:07]} 51. Ke4 {[%emt 0:01:51]} Kf2 {[%emt 0:07:04]} 52. Kd3 {[%emt 0:00:17]} Be5 {[%emt 0:05:00]} 53. Be2 {[%emt 0:00:40]} Bg7 {[%emt 0:00:42]} 54. Bd1 {[%emt 0:00:12]} h5 {[%emt 0:02:36]} 55. gxh5 {[%emt 0:00:06]} Bh6 {[%emt 0:00:04]} 56. Be2 {[%emt 0:01:13]} Kg2 {[%emt 0:04:00]} 57. Ke4 {[%emt 0:08:01]} Kf2 {[%emt 0:01:28]} 58. Kd3 {[%emt 0:00:04]} Kg2 {[%emt 0:03:23]} 59. Ke4 {[%emt 0:00:08]} Kf2 {[%emt 0:01:05]} 1/2-1/2

[Event "European Womens-ch 2025"]
[Site "Rhodes"]
[Date "2025.04.07"]
[Round "7.35"]
[White "Yao, Lan"]
[Black "Chelushkina, Irina"]
[Result "1-0"]
[Annotator "RC"]
[ECO "C02"]
[WhiteElo "2294"]
[BlackElo "2134"]
[PlyCount "51"]
[EventDate "2025.03.29"]
[EventType "swiss"]
[EventCountry "GRE"]
[SourceTitle "playchess.com"]
[Source "ChessBase"]
[SourceQuality "1"]
[TimeControl "40/5400+30:1800+30"]

1. e4 {[%emt 0:00:03]} e6 {[%emt 0:00:10]} 2. d4 {[%emt 0:00:06]} d5 {[%emt 0:00:04]} 3. e5 {[%emt 0:00:06]} c5 {[%emt 0:00:16]} 4. c3 {[%emt 0:00:05]} Nc6 {[%emt 0:00:17]} 5. Nf3 {[%emt 0:00:04]} Bd7 {[%emt 0:00:24]} 6. a3 {[%emt 0:00:04]} f6 {[%emt 0:01:09]} 7. Bd3 {[%emt 0:07:58]} Qc7 {[%emt 0:03:06]} 8. Bf4 {[%emt 0:01:57]} c4 {[%emt 0:00:51]} 9. Bc2 {[%emt 0:01:30]} O-O-O {[%emt 0:04:18]} 10. Bg3 {[%emt 0:04:31]} Qb6 {[%emt 0:02:02]} 11. Qc1 {[%emt 0:00:49]} Nh6 {[%emt 0:03:17]} 12. Nbd2 {[%emt 0:22:40]} Nf7 {[%emt 0:04:11]} 13. exf6 {[%emt 0:00:47]} gxf6 {[%emt 0:00:04]} 14. b3 {[%emt 0:01:04]} Qa5 {[%emt 0:04:57]} 15. Bd1 {[%emt 0:05:14]} e5 {[%emt 0:17:37]} 16. bxc4 {[%emt 0:05:51]} exd4 {[%emt 0:00:51]} 17. O-O {[%emt 0:00:40]} Bh6 {[%emt 0:31:10]} 18. cxd4 {[%emt 0:05:06]} Be6 {[%emt 0:00:48]} 19. cxd5 {[%emt 0:04:18]} Bxd5 {[%emt 0:02:20]} 20. Qc2 {[%emt 0:00:29]} Rd7 {[%emt 0:13:16]} 21. Nc4 {[%emt 0:05:29]} Qd8 {[%emt 0:02:47]} 22. Ne3 {[%emt 0:01:37]} Be6 {[%emt 0:00:37]} 23. Be2 {[%emt 0:01:23]} Ng5 {[%emt 0:00:28]} 24. Nxg5 {[%emt 0:00:56]} Bxg5 {[%emt 0:01:08]} 25. d5 {[%emt 0:02:22]} Bxe3 {[%emt 0:00:58]} 26. dxc6 {[%emt 0:00:14]} 1-0

[Event "European Womens-ch 2025"]
[Site "Rhodes"]
[Date "2025.04.07"]
[Round "7.36"]
[White "Sieber, Fiona"]
[Black "Heinatz, Gundula"]
[Result "1-0"]
[Annotator "RC"]
[ECO "C13"]
[WhiteElo "2276"]
[BlackElo "2111"]
[PlyCount "109"]
[EventDate "2025.03.29"]
[EventType "swiss"]
[EventCountry "GRE"]
[SourceTitle "playchess.com"]
[Source "ChessBase"]
[SourceQuality "1"]
[TimeControl "40/5400+30:1800+30"]

1. e4 {[%emt 0:00:06]} e6 {[%emt 0:00:06]} 2. d4 {[%emt 0:00:04]} d5 {[%emt 0:00:04]} 3. Nc3 {[%emt 0:00:05]} Nf6 {[%emt 0:00:10]} 4. Bg5 {[%emt 0:00:13]} dxe4 {[%emt 0:01:14]} 5. Nxe4 {[%emt 0:00:07]} Be7 {[%emt 0:02:05]} 6. Nxf6+ {[%emt 0:00:06]} Bxf6 {[%emt 0:00:24]} 7. Bxf6 {[%emt 0:00:06]} Qxf6 {[%emt 0:00:07]} 8. Nf3 {[%emt 0:00:06]} Bd7 {[%emt 0:10:30]} 9. Qd3 {[%emt 0:13:38]} Nc6 {[%emt 0:10:12]} 10. O-O-O {[%emt 0:05:13]} O-O-O {[%emt 0:11:21]} 11. Qe3 {[%emt 0:00:39]} Qh6 {[%emt 0:10:20]} 12. Qxh6 {[%emt 0:01:39]} gxh6 {[%emt 0:03:28]} 13. Bc4 {[%emt 0:06:32]} Rhg8 {[%emt 0:03:28]} 14. g3 {[%emt 0:00:21]} Na5 {[%emt 0:06:32]} 15. Be2 {[%emt 0:00:46]} Bc6 {[%emt 0:00:28]} 16. b3 {[%emt 0:04:25]} Be4 {[%emt 0:04:10]} 17. Rhe1 {[%emt 0:00:58]} Nc6 {[%emt 0:00:10]} 18. c3 {[%emt 0:01:11]} Ne7 {[%emt 0:04:45]} 19. Ne5 {[%emt 0:02:48]} Bg6 {[%emt 0:01:31]} 20. Bf3 {[%emt 0:03:24]} h5 {[%emt 0:00:29]} 21. h4 {[%emt 0:01:04]} Nd5 {[%emt 0:06:49]} 22. Kb2 {[%emt 0:00:47]} Nf6 {[%emt 0:00:13]} 23. b4 {[%emt 0:03:17]} Rd6 {[%emt 0:03:12]} 24. a4 {[%emt 0:01:36]} Rgd8 {[%emt 0:00:41]} 25. Kb3 {[%emt 0:00:58]} Nd5 {[%emt 0:01:36]} 26. b5 {[%emt 0:18:25]} Ne7 {[%emt 0:01:57]} 27. Nc4 {[%emt 0:02:12]} R6d7 {[%emt 0:00:18]} 28. Ne5 {[%emt 0:01:06]} Rd6 {[%emt 0:00:15]} 29. a5 {[%emt 0:00:56]} a6 {[%emt 0:04:01]} 30. Nc4 {[%emt 0:00:58]} axb5 {[%emt 0:01:26]} 31. Nxd6+ {[%emt 0:00:05]} Rxd6 {[%emt 0:00:20]} 32. Re5 {[%emt 0:03:37]} c6 {[%emt 0:02:46]} 33. Bxh5 {[%emt 0:00:26]} f6 {[%emt 0:01:07]} 34. Bxg6 {[%emt 0:01:33]} fxe5 {[%emt 0:01:00]} 35. Bxh7 {[%emt 0:00:01]} c5 {[%emt 0:01:00]} 36. Be4 {[%emt 0:08:32]} exd4 {[%emt 0:01:05]} 37. cxd4 {[%emt 0:00:09]} e5 {[%emt 0:02:48]} 38. d5 {[%emt 0:00:33]} Nc6 {[%emt 0:03:23]} 39. Rh1 {[%emt 0:05:12]} Nd4+ {[%emt 0:00:08]} 40. Kc3 {[%emt 0:00:00]} Rf6 {[%emt 0:00:00]} 41. Rh2 {[%emt 0:04:17]} Kc7 {[%emt 0:12:26]} 42. h5 {[%emt 0:00:56]} b4+ {[%emt 0:03:06]} 43. Kc4 {[%emt 0:02:11]} Nf3 {[%emt 0:02:37]} 44. Bxf3 {[%emt 0:05:32]} Rxf3 {[%emt 0:00:02]} 45. Kxc5 {[%emt 0:00:19]} b3 {[%emt 0:00:12]} 46. d6+ {[%emt 0:03:38]} Kd7 {[%emt 0:04:31]} 47. Rh4 {[%emt 0:00:15]} Rxf2 {[%emt 0:04:48]} 48. Rb4 {[%emt 0:00:25]} b2 {[%emt 0:00:45]} 49. Kd5 {[%emt 0:06:24]} Rd2+ {[%emt 0:02:22]} 50. Kxe5 {[%emt 0:00:08]} Re2+ {[%emt 0:04:23]} 51. Kf4 Kxd6 {[%emt 0:01:05]} 52. Rxb7 {[%emt 0:00:36]} Kc5 {[%emt 0:01:30]} 53. a6 {[%emt 0:01:12]} Kc6 {[%emt 0:01:41]} 54. Rb8 {[%emt 0:00:56]} Rf2+ {[%emt 0:00:51]} 55. Kg5 {[%emt 0:01:26]} 1-0